[Event "Argentine Superior Chess Championship 2023"]
[Site "https://www.chess.com"]
[Date "2023.10.29"]
[Round "2"]
[White "Gomez, Carlos David"]
[Black "Tristan, Leonardo"]
[Result "1/2-1/2"]
[Board "4"]
[TimeControl "5400+30"]
[WhiteFideId "114669"]
[BlackFideId "113816"]
[WhiteElo "2331"]
[BlackElo "2523"]
[WhiteTeam "ARG"]
[BlackTeam "ARG"]
[WhiteClock "0:04:17"]
[BlackClock "0:02:27"]

1. e4 {[%clk 1:30:56]}  Nf6 {[%clk 1:30:50]} 2. e5 {[%clk 1:31:19]}  Nd5 {[%clk 1:31:12]} 3. d4 {[%clk 1:31:43]}  d6 {[%clk 1:31:34]} 4. Nf3 {[%clk 1:32:07]}  dxe5 {[%clk 1:31:53]} 5. Nxe5 {[%clk 1:32:29]}  c6 {[%clk 1:32:18]} 6. Bd3 {[%clk 1:30:29]}  g6 {[%clk 1:29:32]} 7. O-O {[%clk 1:28:24]}  Bg7 {[%clk 1:28:05]} 8. Re1 {[%clk 1:28:37]}  O-O {[%clk 1:28:14]} 9. c3 {[%clk 1:28:38]}  Nd7 {[%clk 1:28:03]} 10. Nxd7 {[%clk 1:28:59]}  Qxd7 {[%clk 1:26:38]} 11. Be4 {[%clk 1:22:44]}  Qc7 {[%clk 0:56:48]} 12. Nd2 {[%clk 1:09:07]}  Be6 {[%clk 0:53:47]} 13. Nf3 {[%clk 1:01:19]}  Rad8 {[%clk 0:44:33]} 14. Qe2 {[%clk 0:42:01]}  a5 {[%clk 0:21:46]} 15. a4 {[%clk 0:35:35]}  Rfe8 {[%clk 0:19:52]} 16. Bg5 {[%clk 0:28:03]}  Nb6 {[%clk 0:15:12]} 17. Qc2 {[%clk 0:26:49]}  Bd5 {[%clk 0:13:40]} 18. h4 {[%clk 0:23:19]}  h6 {[%clk 0:10:39]} 19. Bc1 {[%clk 0:17:25]}  e6 {[%clk 0:04:59]} 20. Ne5 {[%clk 0:11:00]}  Bxe4 {[%clk 0:04:56]} 21. Qxe4 {[%clk 0:10:44]}  Nd5 {[%clk 0:03:36]} 22. Nd3 {[%clk 0:05:19]}  Qe7 {[%clk 0:03:16]} 23. g3 {[%clk 0:05:40]}  Qf6 {[%clk 0:03:19]} 24. Bd2 {[%clk 0:05:13]}  Nb6 {[%clk 0:02:27]} 25. Bf4 {[%clk 0:04:37]}  Nd5 {[%clk 0:02:03]} 26. Bd2 {[%clk 0:04:01]}  Nb6 {[%clk 0:02:28]} 27. Bf4 {[%clk 0:04:22]}  Nd5 {[%clk 0:02:49]} 28. Bd2 {[%clk 0:04:17]}  Nb6 {[%clk 0:02:27]} 1/2-1/2

[Event "Argentine Superior Chess Championship 2023"]
[Site "https://www.chess.com"]
[Date "2023.10.29"]
[Round "2"]
[White "Perez Ponsa, Federico"]
[Black "Villca, Julian"]
[Result "1-0"]
[Board "5"]
[TimeControl "5400+30"]
[WhiteFideId "117927"]
[BlackFideId "134902"]
[WhiteElo "2527"]
[BlackElo "2383"]
[WhiteTeam "ARG"]
[BlackTeam "ARG"]
[WhiteClock "0:05:17"]
[BlackClock "0:02:34"]

1. e4 {[%clk 1:30:56]}  e5 {[%clk 1:30:55]} 2. Nf3 {[%clk 1:31:03]}  Nc6 {[%clk 1:31:19]} 3. Bb5 {[%clk 1:31:28]}  a6 {[%clk 1:31:45]} 4. Ba4 {[%clk 1:31:54]}  Nf6 {[%clk 1:32:11]} 5. O-O {[%clk 1:32:18]}  b5 {[%clk 1:32:39]} 6. Bb3 {[%clk 1:32:41]}  Bc5 {[%clk 1:33:04]} 7. a4 {[%clk 1:32:46]}  Bb7 {[%clk 1:30:44]} 8. Re1 {[%clk 1:28:58]}  d6 {[%clk 1:29:35]} 9. c3 {[%clk 1:28:52]}  O-O {[%clk 1:29:21]} 10. d4 {[%clk 1:28:12]}  Bb6 {[%clk 1:29:47]} 11. Bg5 {[%clk 1:27:44]}  h6 {[%clk 1:29:33]} 12. Bh4 {[%clk 1:27:57]}  Re8 {[%clk 1:28:40]} 13. axb5 {[%clk 1:14:40]}  axb5 {[%clk 1:29:02]} 14. Rxa8 {[%clk 1:15:05]}  Bxa8 {[%clk 1:28:56]} 15. Qd3 {[%clk 1:14:38]}  exd4 {[%clk 1:00:38]} 16. cxd4 {[%clk 1:11:49]}  g5 {[%clk 1:01:00]} 17. e5 {[%clk 0:53:40]}  Kf8 {[%clk 0:54:47]} 18. Nxg5 {[%clk 0:47:25]}  hxg5 {[%clk 0:50:28]} 19. Bxg5 {[%clk 0:47:43]}  dxe5 {[%clk 0:32:23]} 20. Qh3 {[%clk 0:44:24]}  Qd6 {[%clk 0:25:11]} 21. Qh6+ {[%clk 0:37:15]}  Ke7 {[%clk 0:25:29]} 22. Qg7 {[%clk 0:36:21]}  Kd7 {[%clk 0:18:36]} 23. Bxf7 {[%clk 0:23:44]}  Kc8 {[%clk 0:09:47]} 24. Bxf6 {[%clk 0:16:08]}  Rf8 {[%clk 0:09:41]} 25. Nc3 {[%clk 0:11:49]}  Nxd4 {[%clk 0:06:28]} 26. Ra1 {[%clk 0:08:17]}  Bb7 {[%clk 0:04:43]} 27. Nd5 {[%clk 0:05:11]}  Nf5 {[%clk 0:02:18]} 28. Nxb6+ {[%clk 0:04:56]}  cxb6 {[%clk 0:02:34]} 29. Be6+ {[%clk 0:05:17]} 1-0

[Event "Argentine Superior Chess Championship 2023"]
[Site "https://www.chess.com"]
[Date "2023.10.29"]
[Round "2"]
[White "Tokman, Ariel"]
[Black "Silva, Luca"]
[Result "1-0"]
[Board "6"]
[TimeControl "5400+30"]
[WhiteFideId "117420"]
[BlackFideId "147370"]
[WhiteElo "2306"]
[BlackElo "2287"]
[WhiteTeam "ARG"]
[BlackTeam "ARG"]
[WhiteClock "0:07:17"]
[BlackClock "0:11:38"]

1. e4 {[%clk 1:30:55]}  c5 {[%clk 1:30:45]} 2. Nf3 {[%clk 1:31:16]}  d6 {[%clk 1:31:08]} 3. Bb5+ {[%clk 1:31:41]}  Nd7 {[%clk 1:31:33]} 4. a4 {[%clk 1:32:01]}  Ngf6 {[%clk 1:30:58]} 5. Nc3 {[%clk 1:32:26]}  g6 {[%clk 1:30:07]} 6. O-O {[%clk 1:28:56]}  Bg7 {[%clk 1:30:13]} 7. a5 {[%clk 1:28:56]}  a6 {[%clk 1:28:51]} 8. Be2 {[%clk 1:29:18]}  b5 {[%clk 1:28:32]} 9. axb6 {[%clk 1:29:40]}  Bb7 {[%clk 1:26:51]} 10. d3 {[%clk 1:28:51]}  O-O {[%clk 1:27:15]} 11. Re1 {[%clk 1:19:55]}  Nxb6 {[%clk 1:22:08]} 12. Bf4 {[%clk 1:10:01]}  Nh5 {[%clk 1:14:48]} 13. Be3 {[%clk 1:08:57]}  Qc7 {[%clk 1:11:54]} 14. Nd2 {[%clk 0:50:12]}  Nf6 {[%clk 1:12:10]} 15. Bf4 {[%clk 0:49:13]}  Bc6 {[%clk 1:06:06]} 16. Bf3 {[%clk 0:46:53]}  Qb7 {[%clk 1:03:16]} 17. Nb3 {[%clk 0:46:27]}  e5 {[%clk 0:55:39]} 18. Na5 {[%clk 0:43:31]}  Qc7 {[%clk 0:56:04]} 19. Nxc6 {[%clk 0:41:40]}  Qxc6 {[%clk 0:56:18]} 20. Bg5 {[%clk 0:41:52]}  Rfb8 {[%clk 0:54:59]} 21. Qd2 {[%clk 0:30:10]}  Ne8 {[%clk 0:52:55]} 22. Ra2 {[%clk 0:29:52]}  Nc7 {[%clk 0:52:33]} 23. Rea1 {[%clk 0:30:13]}  Nd7 {[%clk 0:49:27]} 24. Bg4 {[%clk 0:25:08]}  Nf8 {[%clk 0:47:24]} 25. Be3 {[%clk 0:22:40]}  Rb6 {[%clk 0:43:26]} 26. Qc1 {[%clk 0:19:17]}  Qb7 {[%clk 0:40:35]} 27. Nb1 {[%clk 0:16:01]}  a5 {[%clk 0:31:23]} 28. Nd2 {[%clk 0:16:01]}  Rba6 {[%clk 0:31:17]} 29. Ra4 {[%clk 0:15:40]}  Nce6 {[%clk 0:25:28]} 30. Nc4 {[%clk 0:15:46]}  Qc7 {[%clk 0:25:13]} 31. c3 {[%clk 0:16:15]}  R6a7 {[%clk 0:19:45]} 32. g3 {[%clk 0:15:56]}  Nd8 {[%clk 0:16:46]} 33. b4 {[%clk 0:15:02]}  axb4 {[%clk 0:13:55]} 34. Rxa7 {[%clk 0:15:27]}  Rxa7 {[%clk 0:14:23]} 35. Rxa7 {[%clk 0:15:50]}  Qxa7 {[%clk 0:14:45]} 36. cxb4 {[%clk 0:16:15]}  Qb8 {[%clk 0:03:50]} 37. bxc5 {[%clk 0:16:34]}  dxc5 {[%clk 0:04:15]} 38. Bxc5 {[%clk 0:16:54]}  Qb3 {[%clk 0:03:05]} 39. Bxf8 {[%clk 0:06:08]}  Kxf8 {[%clk 0:03:31]} 40. Qe3 {[%clk 0:35:28]}  Qb4 {[%clk 0:31:30]} 41. Bd7 {[%clk 0:25:46]}  Bf6 {[%clk 0:25:40]} 42. Kg2 {[%clk 0:25:08]}  Kg7 {[%clk 0:19:52]} 43. h4 {[%clk 0:17:57]}  Qe7 {[%clk 0:18:43]} 44. Ba4 {[%clk 0:16:16]}  Ne6 {[%clk 0:17:51]} 45. Qd2 {[%clk 0:12:05]}  Qd8 {[%clk 0:14:14]} 46. Bc6 {[%clk 0:10:50]}  Qd4 {[%clk 0:13:40]} 47. Bd5 {[%clk 0:06:57]}  Nc5 {[%clk 0:13:30]} 48. Nb2 {[%clk 0:05:04]}  Bd8 {[%clk 0:13:19]} 49. Qe2 {[%clk 0:05:15]}  Bb6 {[%clk 0:10:05]} 50. Bc4 {[%clk 0:05:12]}  Nd7 {[%clk 0:08:36]} 51. Nd1 {[%clk 0:05:09]}  Nf6 {[%clk 0:08:08]} 52. Qf3 {[%clk 0:05:20]}  h5 {[%clk 0:07:38]} 53. Ne3 {[%clk 0:04:39]}  Qd7 {[%clk 0:07:03]} 54. Bb3 {[%clk 0:02:24]}  Ba7 {[%clk 0:04:25]} 55. Qe2 {[%clk 0:01:59]}  Bc5 {[%clk 0:03:06]} 56. Bc4 {[%clk 0:01:40]}  Ba7 {[%clk 0:02:23]} 57. Nd1 {[%clk 0:01:15]}  Ng4 {[%clk 0:01:22]} 58. Qf3 {[%clk 0:01:01]}  Nf6 {[%clk 0:01:39]} 59. Bd5 {[%clk 0:00:48]}  Qc7 {[%clk 0:01:33]} 60. Ne3 {[%clk 0:01:01]}  Qd7 {[%clk 0:01:19]} 61. Bc4 {[%clk 0:01:00]}  Bc5 {[%clk 0:01:32]} 62. Qe2 {[%clk 0:01:05]}  Ba7 {[%clk 0:01:45]} 63. Qb2 {[%clk 0:00:38]}  Bd4 {[%clk 0:01:10]} 64. Qb5 {[%clk 0:00:49]}  Qxb5 {[%clk 0:01:03]} 65. Bxb5 {[%clk 0:01:17]}  Kf8 {[%clk 0:00:53]} 66. Nc2 {[%clk 0:01:08]}  Bc5 {[%clk 0:01:17]} 67. f3 {[%clk 0:01:13]}  Ke7 {[%clk 0:01:21]} 68. Bc4 {[%clk 0:00:58]}  Kf8 {[%clk 0:01:23]} 69. Na1 {[%clk 0:01:02]}  Ke7 {[%clk 0:01:11]} 70. Nb3 {[%clk 0:01:29]}  Bb6 {[%clk 0:01:36]} 71. Nc1 {[%clk 0:01:40]}  Be3 {[%clk 0:01:23]} 72. Ne2 {[%clk 0:02:01]}  Ne8 {[%clk 0:00:48]} 73. f4 {[%clk 0:01:40]}  f6 {[%clk 0:00:41]} 74. Kf3 {[%clk 0:01:55]}  Bd2 {[%clk 0:00:47]} 75. d4 {[%clk 0:00:55]}  exd4 {[%clk 0:01:13]} 76. Nxd4 {[%clk 0:01:23]}  Bc3 {[%clk 0:00:54]} 77. Nb5 {[%clk 0:01:15]}  Bb2 {[%clk 0:01:07]} 78. Bd5 {[%clk 0:01:19]}  Kf8 {[%clk 0:00:41]} 79. Bc6 {[%clk 0:01:27]}  Ng7 {[%clk 0:00:54]} 80. Bd7 {[%clk 0:01:03]}  Ke7 {[%clk 0:01:16]} 81. Bh3 {[%clk 0:01:15]}  Ne8 {[%clk 0:01:31]} 82. Ke3 {[%clk 0:01:24]}  Bc1+ {[%clk 0:01:03]} 83. Kd3 {[%clk 0:01:18]}  Nd6 {[%clk 0:00:46]} 84. Nc3 {[%clk 0:01:31]}  Ne8 {[%clk 0:00:53]} 85. Bc8 {[%clk 0:01:27]}  Ba3 {[%clk 0:00:45]} 86. Ba6 {[%clk 0:00:53]}  Kf8 {[%clk 0:00:41]} 87. Nd5 {[%clk 0:00:47]}  Kg7 {[%clk 0:00:46]} 88. Bb5 {[%clk 0:01:03]}  Nd6 {[%clk 0:01:06]} 89. Bc6 {[%clk 0:01:27]}  Bc5 {[%clk 0:01:13]} 90. Nc3 {[%clk 0:01:39]}  Bf2 {[%clk 0:01:13]} 91. Ne2 {[%clk 0:02:02]}  Kf7 {[%clk 0:01:24]} 92. Bd7 {[%clk 0:02:20]}  Ke7 {[%clk 0:01:36]} 93. Bh3 {[%clk 0:02:43]}  Ke8 {[%clk 0:01:12]} 94. e5 {[%clk 0:02:31]}  fxe5 {[%clk 0:01:33]} 95. fxe5 {[%clk 0:02:55]}  Nf7 {[%clk 0:01:38]} 96. Ke4 {[%clk 0:03:03]}  Ke7 {[%clk 0:01:03]} 97. Nf4 {[%clk 0:01:05]}  Bxg3 {[%clk 0:00:38]} 98. Nxg6+ {[%clk 0:01:30]}  Ke8 {[%clk 0:00:59]} 99. e6 {[%clk 0:01:41]}  Nd8 {[%clk 0:00:58]} 100. Kd5 {[%clk 0:01:37]}  Nxe6 {[%clk 0:00:31]} 101. Kxe6 {[%clk 0:01:39]}  Be1 {[%clk 0:00:33]} 102. Kf6 {[%clk 0:01:48]}  Bd2 {[%clk 0:00:33]} 103. Bg2 {[%clk 0:01:32]}  Kd7 {[%clk 0:00:34]} 104. Bf3 {[%clk 0:01:32]}  Bc3+ {[%clk 0:00:36]} 105. Kg5 {[%clk 0:01:51]}  Be1 {[%clk 0:00:59]} 106. Bxh5 {[%clk 0:02:09]}  Kd6 {[%clk 0:01:05]} 107. Bf3 {[%clk 0:02:25]}  Bxh4+ {[%clk 0:01:29]} 108. Nxh4 {[%clk 0:02:49]}  Kc5 {[%clk 0:01:45]} 109. Kf4 {[%clk 0:03:13]}  Kd4 {[%clk 0:02:10]} 110. Nf5+ {[%clk 0:03:38]}  Kd3 {[%clk 0:02:21]} 111. Ke5 {[%clk 0:03:51]}  Kc4 {[%clk 0:02:26]} 112. Be4 {[%clk 0:04:05]}  Kc3 {[%clk 0:02:52]} 113. Kd5 {[%clk 0:04:26]}  Kb4 {[%clk 0:02:53]} 114. Kd4 {[%clk 0:04:42]}  Kb3 {[%clk 0:03:19]} 115. Bd3 {[%clk 0:04:46]}  Kb2 {[%clk 0:03:44]} 116. Kc4 {[%clk 0:05:03]}  Ka2 {[%clk 0:04:01]} 117. Kc3 {[%clk 0:05:16]}  Ka1 {[%clk 0:04:19]} 118. Nd4 {[%clk 0:05:07]}  Ka2 {[%clk 0:04:45]} 119. Nc2 {[%clk 0:04:47]}  Kb1 {[%clk 0:05:09]} 120. Bc4 {[%clk 0:05:01]}  Kc1 {[%clk 0:05:23]} 121. Ba2 {[%clk 0:05:21]}  Kd1 {[%clk 0:05:49]} 122. Nd4 {[%clk 0:05:35]}  Ke1 {[%clk 0:05:19]} 123. Nf5 {[%clk 0:05:42]}  Kf2 {[%clk 0:05:33]} 124. Bd5 {[%clk 0:06:04]}  Ke2 {[%clk 0:05:50]} 125. Be4 {[%clk 0:06:13]}  Kd1 {[%clk 0:06:14]} 126. Nd4 {[%clk 0:05:49]}  Kc1 {[%clk 0:06:31]} 127. Ne2+ {[%clk 0:06:00]}  Kd1 {[%clk 0:06:56]} 128. Kd3 {[%clk 0:06:20]}  Ke1 {[%clk 0:07:18]} 129. Ke3 {[%clk 0:06:12]}  Kf1 {[%clk 0:07:28]} 130. Nf4 {[%clk 0:05:08]}  Ke1 {[%clk 0:07:54]} 131. Bc2 {[%clk 0:05:30]}  Kf1 {[%clk 0:08:20]} 132. Bb3 {[%clk 0:05:31]}  Ke1 {[%clk 0:08:38]} 133. Ng2+ {[%clk 0:05:55]}  Kf1 {[%clk 0:09:03]} 134. Kf3 {[%clk 0:06:20]}  Kg1 {[%clk 0:09:29]} 135. Kg3 {[%clk 0:06:29]}  Kf1 {[%clk 0:09:54]} 136. Bc4+ {[%clk 0:06:54]}  Kg1 {[%clk 0:10:22]} 137. Bd3 {[%clk 0:06:32]}  Kh1 {[%clk 0:10:47]} 138. Nf4 {[%clk 0:06:52]}  Kg1 {[%clk 0:11:11]} 139. Nh3+ {[%clk 0:07:18]}  Kh1 {[%clk 0:11:38]} 140. Be4# {[%clk 0:07:17]} 1-0

[Event "Argentine Superior Chess Championship 2023"]
[Site "https://www.chess.com"]
[Date "2023.10.30"]
[Round "3"]
[White "Silva, Luca"]
[Black "Acosta, Pablo Ismael"]
[Result "0-1"]
[Board "1"]
[TimeControl "5400+30"]
[WhiteFideId "147370"]
[BlackFideId "124311"]
[WhiteElo "2287"]
[BlackElo "2482"]
[WhiteTeam "ARG"]
[BlackTeam "ARG"]
[WhiteClock "0:05:41"]
[BlackClock "0:10:40"]

1. d4 {[%clk 1:30:55]}  Nf6 {[%clk 1:30:48]} 2. c4 {[%clk 1:31:19]}  e6 {[%clk 1:31:13]} 3. Nf3 {[%clk 1:31:45]}  d5 {[%clk 1:31:06]} 4. g3 {[%clk 1:32:07]}  dxc4 {[%clk 1:31:31]} 5. Bg2 {[%clk 1:32:27]}  a6 {[%clk 1:31:53]} 6. Ne5 {[%clk 1:29:02]}  Bb4+ {[%clk 1:32:14]} 7. Nc3 {[%clk 1:28:13]}  Nd5 {[%clk 1:32:03]} 8. O-O {[%clk 1:28:35]}  O-O {[%clk 1:28:53]} 9. Ne4 {[%clk 1:27:23]}  c3 {[%clk 1:15:52]} 10. bxc3 {[%clk 1:17:43]}  Nxc3 {[%clk 1:13:25]} 11. Qc2 {[%clk 1:18:09]}  Nxe4 {[%clk 1:08:28]} 12. Bxe4 {[%clk 1:17:06]}  f5 {[%clk 0:57:28]} 13. Bf3 {[%clk 1:17:28]}  Nd7 {[%clk 0:53:59]} 14. Nd3 {[%clk 1:14:34]}  Bd6 {[%clk 0:52:21]} 15. Bb2 {[%clk 1:04:41]}  Qe7 {[%clk 0:51:27]} 16. Rae1 {[%clk 1:00:27]}  Nf6 {[%clk 0:48:21]} 17. e4 {[%clk 0:48:34]}  fxe4 {[%clk 0:42:52]} 18. Bxe4 {[%clk 0:48:58]}  Nxe4 {[%clk 0:41:52]} 19. Rxe4 {[%clk 0:49:24]}  Qg5 {[%clk 0:37:28]} 20. Ne5 {[%clk 0:46:34]}  b5 {[%clk 0:32:58]} 21. f4 {[%clk 0:37:09]}  Qh6 {[%clk 0:32:16]} 22. Qe2 {[%clk 0:31:13]}  Bb7 {[%clk 0:26:41]} 23. Ng4 {[%clk 0:28:04]}  Qh3 {[%clk 0:25:29]} 24. Re3 {[%clk 0:16:12]}  Bd5 {[%clk 0:24:52]} 25. Rf2 {[%clk 0:13:53]}  h5 {[%clk 0:16:48]} 26. Ne5 {[%clk 0:13:12]}  Qf5 {[%clk 0:17:08]} 27. Nf3 {[%clk 0:10:59]}  Qg4 {[%clk 0:14:48]} 28. Ng5 {[%clk 0:06:32]}  Rxf4 {[%clk 0:12:17]} 29. Qxg4 {[%clk 0:05:19]}  Rxg4 {[%clk 0:12:40]} 30. Nxe6 {[%clk 0:05:41]}  Re8 {[%clk 0:10:40]} 0-1

[Event "Argentine Superior Chess Championship 2023"]
[Site "https://www.chess.com"]
[Date "2023.10.30"]
[Round "3"]
[White "Villca, Julian"]
[Black "Tokman, Ariel"]
[Result "1-0"]
[Board "2"]
[TimeControl "5400+30"]
[WhiteFideId "134902"]
[BlackFideId "117420"]
[WhiteElo "2383"]
[BlackElo "2306"]
[WhiteTeam "ARG"]
[BlackTeam "ARG"]
[WhiteClock "0:40:59"]
[BlackClock "0:35:34"]

1. d4 {[%clk 1:30:55]}  Nf6 {[%clk 1:29:53]} 2. c4 {[%clk 1:30:08]}  e6 {[%clk 1:30:14]} 3. Nf3 {[%clk 1:30:09]}  d5 {[%clk 1:30:37]} 4. g3 {[%clk 1:28:05]}  Be7 {[%clk 1:30:56]} 5. Bg2 {[%clk 1:28:22]}  O-O {[%clk 1:31:19]} 6. O-O {[%clk 1:28:33]}  c6 {[%clk 1:31:41]} 7. Nc3 {[%clk 1:28:15]}  b6 {[%clk 1:26:00]} 8. Ne5 {[%clk 1:28:28]}  Bb7 {[%clk 1:23:41]} 9. e4 {[%clk 1:28:38]}  dxc4 {[%clk 1:00:32]} 10. Nxc4 {[%clk 1:28:52]}  b5 {[%clk 1:00:41]} 11. Ne3 {[%clk 1:28:53]}  Nbd7 {[%clk 0:58:39]} 12. b3 {[%clk 1:14:06]}  b4 {[%clk 0:45:46]} 13. Ne2 {[%clk 1:13:49]}  Nb6 {[%clk 0:42:43]} 14. Nf4 {[%clk 1:13:15]}  c5 {[%clk 0:38:42]} 15. e5 {[%clk 1:05:56]}  Ne4 {[%clk 0:27:48]} 16. Bb2 {[%clk 1:00:56]}  cxd4 {[%clk 0:24:59]} 17. Qxd4 {[%clk 0:49:51]}  Bc5 {[%clk 0:24:24]} 18. Qd3 {[%clk 0:50:06]}  Qxd3 {[%clk 0:23:24]} 19. Nxd3 {[%clk 0:50:33]}  Be7 {[%clk 0:13:15]} 20. a3 {[%clk 0:24:20]}  bxa3 {[%clk 0:13:09]} 21. Bxa3 {[%clk 0:24:49]}  Bxa3 {[%clk 0:13:29]} 22. Rxa3 {[%clk 0:25:14]}  Rfd8 {[%clk 0:13:26]} 23. b4 {[%clk 0:25:01]}  Rab8 {[%clk 0:09:14]} 24. Rc1 {[%clk 0:16:33]}  Nd2 {[%clk 0:09:16]} 25. Rc7 {[%clk 0:16:38]}  Bxg2 {[%clk 0:06:33]} 26. Kxg2 {[%clk 0:16:59]}  a6 {[%clk 0:06:43]} 27. Rxa6 {[%clk 0:16:27]}  Nd5 {[%clk 0:05:17]} 28. Nxd5 {[%clk 0:16:26]}  Rxd5 {[%clk 0:05:46]} 29. Rd6 {[%clk 0:16:43]}  Ne4 {[%clk 0:04:30]} 30. Rxd5 {[%clk 0:16:56]}  exd5 {[%clk 0:04:59]} 31. f3 {[%clk 0:17:01]}  Nd2 {[%clk 0:05:09]} 32. Kf2 {[%clk 0:16:22]}  Nb3 {[%clk 0:04:44]} 33. f4 {[%clk 0:13:33]}  Kf8 {[%clk 0:04:52]} 34. Ke3 {[%clk 0:13:30]}  Ra8 {[%clk 0:05:11]} 35. f5 {[%clk 0:12:53]}  Ra2 {[%clk 0:04:52]} 36. f6 {[%clk 0:12:55]}  gxf6 {[%clk 0:05:01]} 37. exf6 {[%clk 0:13:23]}  Ke8 {[%clk 0:05:01]} 38. Ne5 {[%clk 0:13:12]}  d4+ {[%clk 0:05:17]} 39. Kf3 {[%clk 0:13:15]}  Kd8 {[%clk 0:05:15]} 40. Rxf7 {[%clk 0:43:21]}  Rxh2 {[%clk 0:35:34]} 41. Rd7+ {[%clk 0:40:59]} 1-0

[Event "Argentine Superior Chess Championship 2023"]
[Site "https://www.chess.com"]
[Date "2023.10.30"]
[Round "3"]
[White "Tristan, Leonardo"]
[Black "Perez Ponsa, Federico"]
[Result "1/2-1/2"]
[Board "3"]
[TimeControl "5400+30"]
[WhiteFideId "113816"]
[BlackFideId "117927"]
[WhiteElo "2523"]
[BlackElo "2527"]
[WhiteTeam "ARG"]
[BlackTeam "ARG"]
[WhiteClock "0:14:47"]
[BlackClock "0:38:22"]

1. d4 {[%clk 1:30:53]}  Nf6 {[%clk 1:26:00]} 2. Nf3 {[%clk 1:30:04]}  d5 {[%clk 1:26:21]} 3. c3 {[%clk 1:30:27]}  e6 {[%clk 1:25:58]} 4. Bf4 {[%clk 1:30:46]}  c5 {[%clk 1:25:55]} 5. e3 {[%clk 1:31:06]}  Bd6 {[%clk 1:26:11]} 6. Bb5+ {[%clk 1:29:51]}  Nc6 {[%clk 1:26:23]} 7. Bxc6+ {[%clk 1:29:52]}  bxc6 {[%clk 1:26:47]} 8. Bxd6 {[%clk 1:30:17]}  Qxd6 {[%clk 1:27:10]} 9. Qa4 {[%clk 1:30:44]}  O-O {[%clk 1:26:06]} 10. O-O {[%clk 1:23:21]}  cxd4 {[%clk 1:23:38]} 11. cxd4 {[%clk 1:23:46]}  c5 {[%clk 1:23:52]} 12. Rc1 {[%clk 1:17:31]}  cxd4 {[%clk 1:20:16]} 13. Qxd4 {[%clk 1:10:20]}  Bd7 {[%clk 1:16:44]} 14. Nbd2 {[%clk 1:06:53]}  Rfb8 {[%clk 1:07:20]} 15. Rc5 {[%clk 0:42:32]}  Qb6 {[%clk 1:06:21]} 16. Rac1 {[%clk 0:42:27]}  Be8 {[%clk 1:04:35]} 17. b3 {[%clk 0:38:22]}  a5 {[%clk 0:57:12]} 18. a3 {[%clk 0:30:31]}  h6 {[%clk 0:49:40]} 19. Ne5 {[%clk 0:24:08]}  Qa6 {[%clk 0:48:43]} 20. Rc7 {[%clk 0:20:51]}  Rc8 {[%clk 0:46:11]} 21. h3 {[%clk 0:16:58]}  Rxc7 {[%clk 0:37:02]} 22. Rxc7 {[%clk 0:17:23]}  Qd6 {[%clk 0:37:17]} 23. Rc5 {[%clk 0:17:38]}  Qa6 {[%clk 0:37:30]} 24. Rc7 {[%clk 0:14:03]}  Qd6 {[%clk 0:37:55]} 25. Rc5 {[%clk 0:14:28]}  Qa6 {[%clk 0:38:22]} 26. Rc7 {[%clk 0:14:47]} 1/2-1/2

[Event "Argentine Superior Chess Championship 2023"]
[Site "https://www.chess.com"]
[Date "2023.10.30"]
[Round "3"]
[White "Peralta, Fernando"]
[Black "Gomez, Carlos David"]
[Result "1-0"]
[Board "4"]
[TimeControl "5400+30"]
[WhiteFideId "105309"]
[BlackFideId "114669"]
[WhiteElo "2580"]
[BlackElo "2331"]
[WhiteTeam "ARG"]
[BlackTeam "ARG"]
[WhiteClock "0:25:07"]
[BlackClock "0:20:20"]

1. d4 {[%clk 1:30:54]}  Nf6 {[%clk 1:30:46]} 2. c4 {[%clk 1:31:19]}  e6 {[%clk 1:31:10]} 3. Nc3 {[%clk 1:31:24]}  Bb4 {[%clk 1:31:33]} 4. e3 {[%clk 1:31:49]}  c5 {[%clk 1:31:52]} 5. Nge2 {[%clk 1:30:58]}  d5 {[%clk 1:32:02]} 6. a3 {[%clk 1:30:42]}  Ba5 {[%clk 1:32:17]} 7. dxc5 {[%clk 1:30:12]}  dxc4 {[%clk 1:32:38]} 8. Qxd8+ {[%clk 1:30:14]}  Kxd8 {[%clk 1:33:01]} 9. Bd2 {[%clk 1:26:48]}  Nbd7 {[%clk 1:32:27]} 10. Ng3 {[%clk 1:15:05]}  Nxc5 {[%clk 1:15:00]} 11. Bxc4 {[%clk 1:15:23]}  Ncd7 {[%clk 1:11:14]} 12. Be2 {[%clk 1:07:11]}  h5 {[%clk 1:04:11]} 13. b4 {[%clk 1:00:28]}  Bb6 {[%clk 1:03:18]} 14. O-O {[%clk 1:00:22]}  Ne5 {[%clk 0:56:50]} 15. Nge4 {[%clk 0:44:52]}  Ke7 {[%clk 0:34:47]} 16. Nxf6 {[%clk 0:42:07]}  gxf6 {[%clk 0:34:48]} 17. Na4 {[%clk 0:41:27]}  Bd8 {[%clk 0:35:08]} 18. f4 {[%clk 0:38:55]}  Nd7 {[%clk 0:33:26]} 19. Rac1 {[%clk 0:36:35]}  Rb8 {[%clk 0:27:12]} 20. b5 {[%clk 0:32:45]}  Nb6 {[%clk 0:25:04]} 21. Nc5 {[%clk 0:26:43]}  Kf8 {[%clk 0:20:57]} 22. a4 {[%clk 0:20:17]}  f5 {[%clk 0:20:38]} 23. Bc3 {[%clk 0:18:41]}  f6 {[%clk 0:20:47]} 24. Bf3 {[%clk 0:16:25]}  Be7 {[%clk 0:13:02]} 25. Bd4 {[%clk 0:09:59]}  Kf7 {[%clk 0:12:24]} 26. Rfd1 {[%clk 0:05:00]}  Kg6 {[%clk 0:08:33]} 27. e4 {[%clk 0:03:48]}  fxe4 {[%clk 0:07:37]} 28. Bxe4+ {[%clk 0:04:06]}  Kg7 {[%clk 0:07:39]} 29. Bf3 {[%clk 0:01:58]}  Nd5 {[%clk 0:07:15]} 30. f5 {[%clk 0:01:41]}  e5 {[%clk 0:06:34]} 31. Bf2 {[%clk 0:01:52]}  Nf4 {[%clk 0:06:31]} 32. Nd7 {[%clk 0:01:39]}  Ra8 {[%clk 0:06:52]} 33. Kf1 {[%clk 0:00:56]}  Re8 {[%clk 0:02:02]} 34. Be4 {[%clk 0:00:42]}  Ba3 {[%clk 0:01:10]} 35. Rc7 {[%clk 0:00:33]}  Re7 {[%clk 0:01:19]} 36. Nxf6 {[%clk 0:00:34]}  Kxf6 {[%clk 0:00:44]} 37. Bh4+ {[%clk 0:00:53]}  Kf7 {[%clk 0:01:02]} 38. Bxe7 {[%clk 0:01:16]}  Bxe7 {[%clk 0:01:28]} 39. Rdc1 {[%clk 0:01:17]}  Bxf5 {[%clk 0:01:08]} 40. Bxf5 {[%clk 0:31:43]}  Nd5 {[%clk 0:31:31]} 41. Rc8 {[%clk 0:29:23]}  Rxc8 {[%clk 0:30:13]} 42. Bxc8 {[%clk 0:29:14]}  b6 {[%clk 0:30:38]} 43. Bb7 {[%clk 0:27:49]}  Ne3+ {[%clk 0:29:20]} 44. Ke2 {[%clk 0:26:59]}  Nf5 {[%clk 0:28:24]} 45. Bd5+ {[%clk 0:26:50]}  Kf6 {[%clk 0:27:47]} 46. Rc7 {[%clk 0:27:03]}  Bc5 {[%clk 0:26:53]} 47. Rxa7 {[%clk 0:26:03]}  Bg1 {[%clk 0:26:44]} 48. Kd3 {[%clk 0:25:28]}  Bxh2 {[%clk 0:21:08]} 49. Ra6 {[%clk 0:24:48]}  Bg1 {[%clk 0:20:20]} 50. a5 {[%clk 0:25:07]} 1-0